Cogmind - Beta 16.1 @@@ ROGUE MODE // 2026.02.04 @ 21:28:31 Player: Kaisercar Result: Destroyed by H-77 Assassin with Coil Gun Performance ------------- Evolutions (6) 3000 Regions Visited (26) 5200 Robots Destroyed (386) 1930 Value Destroyed (17960) 17960 Prototype IDs (41) 820 Alien Tech Used (0) 0 Bonus (5639) 5639 TOTAL SCORE: 34549 Bonus ------- High Alert Combat Kills 2396 Follower Combat Kills 1388 Entered Garrisons 800 Aligned with FarCom 300 Met Imprinter 300 Acquired ECA 300 Met R17 at Cetus 500 Friendly Fire -345 Cogmind --------- Core Integrity 0/1150 Matter 300/300 Energy 99/100 System Corruption 6% Temperature Cool (0) Movement Core (50) Location -4/Upper Caves Parts ------- > --- POWER (2) -------- (None) > --- PROPULSION (4) --- (None) > --- UTILITY (8) ------ Armor Integrity Analyzer > --- WEAPON (5) ------- (None) > --- INVENTORY (5) ---- Light Antimatter Reactor Improved Hacking Suite Drone Bay (2/2) Advanced Variable Charge Gun Guided Plasma Cannon Peak State ------------ > --- POWER ------------ Micro Fission Core Antimatter Reactor > --- PROPULSION ------- Improved Heavy Treads Centrium Heavy Treads > --- UTILITY ---------- Advanced Heat Sink High-capacity Storage Unit Armor Integrity Analyzer Weapon Cycler Improved Light Armor Plating Advanced Hacking Suite Improved System Shield Improved Recalibrator > --- WEAPON ----------- Improved Arc Projector Heavy Laser KE Penetrator KE Penetrator Advanced KE Penetrator > --- INVENTORY -------- Light Fission Core Micro Fission Core High-capacity Matter Pod Advanced Terrain Scanner Improved Terrain Scan Processor Encrypted Comm Array Centrium Medium Armor Plating Centrium Medium Armor Plating Improved Hacking Suite Advanced Variable Charge Gun Guided Plasma Cannon Antimatter Cannon Antimatter Cannon Heavy Gauss Cannon Tiamat Missile Launcher [Rating: 118] Favorites ----------- Power Improved Deuterium Engine Engine Improved Deuterium Engine Power Core Nuclear Core Reactor Quantum Reactor Propulsion Medium Treads Treads Medium Treads Leg Aluminum Leg Wheel Compact Wheel Utility Advanced Targeting Computer Device Improved Heat Sink Storage Large Storage Unit Processor Advanced Targeting Computer Hackware Advanced Hacking Suite Protection Hardened Medium Armor Plating Weapon Gauss Rifle Energy Gun Improved Medium Laser Energy Cannon Ion Cannon Ballistic Gun Gauss Rifle Ballistic Cannon Advanced Assault Cannon Launcher Rocket Launcher Impact Weapon Heavy Flail Slashing Weapon Phasing Sabre Piercing Weapon CR-A16's Pointy Stick Build | -11 -10 -10 -9 -9 -9 -8 -8 -8 -8 -8 -7 -7 -7 -7 -7 -7 -6 -6 -6 -6 -6 -6 -6 -5 -4 -4 ------- Run | Yrd Mat Min Mat Min Exi Min Mat Gar Mat Gar Fac Gar Fac Low Low Zio Pro Fac Ext Cet Arc Hub Gar Fac Fac Upp Slots Evolved 12 | . . . 2 . . . 2 . . . 2 . . . . . . 2 . . . . . 2 2 . Power 1 | . . . . . . . . . . . . . . . . . . . . . . . . . 1 . Propulsion 2 | . . . . . . . 1 . . . . . . . . . . . . . . . . . 1 . Utility 6 | . . . 1 . . . 1 . . . 2 . . . . . . 2 . . . . . . . . Weapon 3 | . . . 1 . . . . . . . . . . . . . . . . . . . . 2 . . Parts Attached 257 | 7 8 1 8 4 . . 21 6 14 12 16 12 24 3 2 12 1 22 34 12 4 1 1 16 15 1 Power 32 | 1 1 . 1 1 . . 2 . 2 2 1 3 2 . . . . 3 5 1 . . . 3 4 . Engine 11 | 1 . . 1 1 . . 1 . 1 1 1 1 1 . . . . . 2 . . . . . . . Core 17 | . 1 . . . . . 1 . 1 1 . 2 1 . . . . 3 3 . . . . 2 2 . Reactor 4 | . . . . . . . . . . . . . . . . . . . . 1 . . . 1 2 . Propulsion 55 | 2 . . 3 1 . . 7 2 3 5 3 2 6 . . 1 . 4 9 2 1 . . 1 3 . Treads 50 | 2 . . 3 1 . . 7 2 3 4 3 2 6 . . 1 . 3 7 2 1 . . 1 2 . Leg 3 | . . . . . . . . . . 1 . . . . . . . . 1 . . . . . 1 . Wheel 2 | . . . . . . . . . . . . . . . . . . 1 1 . . . . . . . Hover . | . . . . . . . . . . . . . . . . . . . . . . . . . . . Flight . | . . . . . . . . . . . . . . . . . . . . . . . . . . . Utility 84 | 2 2 1 3 . . . 3 3 5 2 8 5 8 . . 6 . 10 8 6 1 . 1 5 4 1 Device 30 | 1 1 . . . . . . . 2 . 2 3 3 . . 3 . 5 4 1 . . . 2 2 1 Storage 7 | 1 1 1 1 . . . . . 1 . 1 . . . . . . 1 . . . . . . . . Processor 12 | . . . 1 . . . 1 . . . . 1 1 . . 3 . . 1 2 . . 1 1 . . Hackware 6 | . . . . . . . . . . . 2 . . . . . . 1 . 1 1 . . 1 . . Protection 29 | . . . 1 . . . 2 3 2 2 3 1 4 . . . . 3 3 2 . . . 1 2 . Artifact . | . . . . . . . . . . . . . . . . . . . . . . . . . . . Weapon 86 | 2 5 . 1 2 . . 9 1 4 3 4 2 8 3 2 5 1 5 12 3 2 1 . 7 4 . Energy Gun 15 | . 3 . . 1 . . . . 1 1 . 1 1 . . . . 2 2 1 . . . . 2 . Energy Cannon 3 | . . . . . . . 1 . . . . . . . 1 1 . . . . . . . . . . Ballistic Gun 37 | 2 1 . 1 . . . 6 1 1 2 2 1 3 2 . 1 1 2 4 2 2 1 . 2 . . Ballistic Cannon 15 | . . . . . . . . . 1 . 1 . 4 . 1 1 . . 2 . . . . 3 2 . Launcher 9 | . 1 . . 1 . . . . . . 1 . . 1 . 1 . 1 1 . . . . 2 . . Special Weapon . | . . . . . . . . . . . . . . . . . . . . . . . . . . . Impact Weapon 3 | . . . . . . . 1 . 1 . . . . . . . . . 1 . . . . . . . Slashing Weapon 2 | . . . . . . . 1 . . . . . . . . . . . 1 . . . . . . . Piercing Weapon 2 | . . . . . . . . . . . . . . . . 1 . . 1 . . . . . . . Special Melee Weapon . | . . . . . . . . . . . . . . . . . . . . . . . . . . . Unidentified Prototypes 16 | . 1 . . . . . 2 . . . 1 . 1 . . 4 . 1 . 4 . . . 2 . . Parts Lost 84 | . . . . . . . 3 1 6 3 . 13 . . . . . 11 9 2 . . 1 7 27 1 Power 14 | . . . . . . . . . . 1 . 3 . . . . . 1 2 . . . . 3 4 . Propulsion 16 | . . . . . . . 1 . 2 2 . 3 . . . . . 2 2 . . . . . 4 . Utility 31 | . . . . . . . 2 . 3 . . 4 . . . . . 6 4 1 . . 1 2 7 1 Weapon 23 | . . . . . . . . 1 1 . . 3 . . . . . 2 1 1 . . . 2 12 . Highest Loss Streak 14 | . . . . . . . 1 1 4 2 . 6 . . . . . 6 2 2 . . 1 4 14 1 To Critical Strikes 1 | . . . . . . . . . . . . . . . . . . . . 1 . . . . . . Average Backups 14 | 2 9 13 13 14 15 15 14 14 14 15 14 13 14 13 13 12 15 13 19 18 17 19 18 17 14 4 Power . | . . . . . . . . . . . . 1 . 1 1 . . . . 1 1 1 1 . . 1 Propulsion 1 | . . . . 2 2 2 . 1 1 . 1 . . 2 2 1 1 . 1 1 1 1 1 1 . . Utility 8 | . 5 9 10 10 10 10 8 6 6 6 7 7 7 6 6 7 9 8 10 8 8 9 8 9 5 1 Weapon 4 | 1 2 3 2 2 3 3 5 6 7 8 5 4 4 3 3 1 4 2 5 6 5 7 7 5 6 2 Tool/Special . | . . . . . . . . . . . . . . . . . . . . . . . . . . . Unused Backups 58 | . 5 1 2 3 . . 7 . 2 2 6 . 4 . 1 3 . 3 9 3 1 . . 1 3 2 Power 4 | . 1 . . . . . . . . . . . . . . . . . 2 1 . . . . . . Propulsion 2 | . 1 . . . . . . . . . . . . . . . . . 1 . . . . . . . Utility 37 | . 2 . 2 3 . . 4 . 2 2 4 . 4 . 1 2 . 1 4 . 1 . . 1 2 2 Weapon 15 | . 1 1 . . . . 3 . . . 2 . . . . 1 . 2 2 2 . . . . 1 . Tool/Special . | . . . . . . . . . . . . . . . . . . . . . . . . . . . Average Slot Usage (%) 95 | . 99 100 99 100 100 100 99 100 98 97 98 98 99 100 100 84 100 85 96 91 96 92 92 93 80 9 Engine 4 | . 12 . 1 11 11 11 6 . 4 4 7 2 7 7 7 7 7 1 3 . . . . . . . Core 2 | . 1 14 9 . . . 2 9 4 4 . 4 . . . . . 1 2 5 . . . . 5 . Treads 21 | . 28 28 22 22 22 22 26 27 26 23 23 22 23 23 23 23 23 14 18 18 16 13 13 11 12 . Device 13 | . 14 14 11 11 11 11 8 9 6 8 4 8 13 15 15 14 15 12 23 9 13 13 13 16 13 4 Storage 7 | . 14 14 11 11 11 11 9 9 9 9 7 7 7 7 7 7 7 6 6 6 6 6 6 5 4 . Processor 9 | . . . 6 11 11 11 9 9 9 9 7 14 15 15 15 15 15 8 6 6 6 6 6 5 5 5 Hackware 2 | . . . . . . . . . . . 5 . . . . . . 6 6 11 13 13 13 11 9 . Protection 8 | . . . 4 . . . 8 9 10 9 17 13 8 7 7 6 7 10 6 12 13 13 12 5 5 . Energy Gun 5 | . 16 14 21 24 22 22 10 3 6 11 . 3 6 7 5 . . 3 4 4 . . . . 5 . Ballistic Gun 10 | . 10 12 11 7 11 11 13 18 18 12 20 13 4 10 11 . 22 9 10 6 17 19 18 26 7 . Ballistic Cannon 2 | . . . . . . . . . . . . . 8 1 2 . . 3 3 7 . . . 1 5 . Peak Build Rating 118 | 7 13 15 21 22 23 23 34 35 33 35 46 47 49 49 49 50 52 61 71 96 104 100 102 109 118 14 Average Rating 49 | 5 11 14 19 21 22 23 27 32 30 32 39 42 45 49 48 40 49 50 62 86 97 99 99 104 100 11 On Entrance 44 | 1 7 13 15 19 22 23 23 32 31 31 31 45 40 49 49 47 48 49 57 70 95 100 100 96 102 7 Avg Prop Armor Cover (%) 9 | . . . . . . . . . . 4 . . . . . . . 13 9 . . . . . 9 . Naked Turns . | . . . . . . . . . . . . . . . . . . . . . . . . . . . Heaviest Build 105 | 14 23 33 39 40 40 40 48 42 48 57 74 66 60 60 59 70 62 96 91 99 104 93 93 102 105 2 Greatest Support 155 | 40 40 40 40 40 40 40 67 66 66 62 68 76 78 76 76 76 68 68 81 110 108 108 108 110 155 3 Greatest Overweight (x) 18 | 1 . . . . . . . . 1 1 1 1 . . . . . 18 7 1 1 . . . 3 . Average Overweight (x) . | . . . . . . . . . . . . . . . . . . 2 1 . . . . . . . Largest Inventory Capacity 25 | 8 10 15 15 15 15 15 15 15 15 15 25 15 25 15 15 15 15 20 20 20 20 20 20 20 20 5 Average Capacity 16 | 7 9 14 15 15 15 15 15 15 15 15 15 15 15 15 15 15 15 18 20 20 20 20 20 20 19 5 Most Carried 20 | 5 10 15 15 15 15 15 15 15 15 15 16 15 15 15 15 15 15 18 20 20 20 20 20 20 20 5 Average Carried 15 | 3 9 13 14 14 14 15 14 14 14 14 14 13 14 14 14 12 15 13 19 19 19 20 19 18 14 4 Final Capacity 20 | 8 10 15 15 15 15 15 15 15 15 15 15 15 15 15 15 15 15 20 20 20 20 20 20 20 5 5 Final Carried 20 | 4 10 15 15 15 15 15 15 15 15 15 15 13 15 15 15 15 15 17 19 19 20 20 20 17 5 5 Class Distribution -------------------- 22% | Mutant 17% | Scavenger-Tank 17% | Gunner 11% | Scavenger-Gunner 9% | Skirmisher 9% | Scavenger-Mutant 5% | Commander-Gunner 3% | Tank Dominant Class ---------------- Mutant | -10/Materials Mutant | -10/Mines Gunner | -9/Materials Gunner | -9/Mines Gunner | -9/Exiles Skirmisher | -8/Mines Skirmisher | -8/Materials Skirmisher | -8/Garrison Skirmisher | -8/Materials Skirmisher | -8/Garrison Scavenger-Tank | -7/Factory Scavenger-Mutant | -7/Garrison Scavenger-Gunner | -7/Factory Gunner | -7/Lower Caves Gunner | -7/Lower Caves Mutant | -7/Zion Gunner | -6/Proximity Caves Tank | -6/Factory Commander-Gunner | -6/Extension Scavenger-Tank | -6/Cetus Scavenger-Tank | -6/Archives Scavenger-Tank | -6/Hub_04(d) Scavenger-Tank | -6/Garrison Scavenger-Tank | -5/Factory Scavenger-Tank | -4/Factory Mutant | -4/Upper Caves Resources | -11 -10 -10 -9 -9 -9 -8 -8 -8 -8 -8 -7 -7 -7 -7 -7 -7 -6 -6 -6 -6 -6 -6 -6 -5 -4 -4 ----------- Run | Yrd Mat Min Mat Min Exi Min Mat Gar Mat Gar Fac Gar Fac Low Low Zio Pro Fac Ext Cet Arc Hub Gar Fac Fac Upp Matter Collected 14885 | 230 345 76 291 205 . . 817 716 474 625 724 931 1449 259 150 210 295 1186 1577 551 403 . 483 1581 1297 10 Remotely 3254 | . . . . . . . . . 204 . . 194 . . . . . 549 1048 . . . . 1013 246 . Salvage Created 16152 | 143 301 . 258 6 . . 1233 976 458 823 579 1138 1316 205 147 . 245 1304 2108 371 620 . 671 1618 1632 . Parts 750 | 13 26 . 22 3 . . 52 55 30 41 37 45 69 11 10 . 11 48 53 17 34 . 30 61 82 . Haulers Intercepted 10 | . . . . . . . 2 . . . 1 . 1 . . . . 2 4 . . . . . . . Recyclers Shooed 11 | 1 . . . . . . 2 . . . . . 3 . . . . 2 . . . . . . 3 . Parts Field Recycled . | . . . . . . . . . . . . . . . . . . . . . . . . . . . Retrieved Matter . | . . . . . . . . . . . . . . . . . . . . . . . . . . . Parts Self-Destructed 26 | . . . . . . . . . . . . . . 8 8 . 10 . . . . . . . . . Prevented 4 | . . . . . . . . . . . . . . . 4 . . . . . . . . . . . Parts Restored . | . . . . . . . . . . . . . . . . . . . . . . . . . . . Kills | -11 -10 -10 -9 -9 -9 -8 -8 -8 -8 -8 -7 -7 -7 -7 -7 -7 -6 -6 -6 -6 -6 -6 -6 -5 -4 -4 ------- Run | Yrd Mat Min Mat Min Exi Min Mat Gar Mat Gar Fac Gar Fac Low Low Zio Pro Fac Ext Cet Arc Hub Gar Fac Fac Upp Combat Hostiles Destroyed 274 | . 10 . 7 3 . . 20 25 12 23 11 22 13 5 3 . 6 8 24 6 4 . 12 23 37 . Guns 179 | . 4 . 7 1 . . 18 18 12 18 10 17 2 2 3 . 5 2 15 2 2 . 12 14 15 . Cannons 44 | . . . . . . . 1 . . . 1 . 11 . . . 1 2 4 4 2 . . 4 14 . AOE 51 | . 6 . . 2 . . 1 7 . 5 . 5 . 3 . . . 4 5 . . . . 5 8 . Classes Destroyed 21 | 2 5 . 1 . . . 3 3 1 . 2 . . 2 1 . . . . . . . . 1 . . Worker 18 | . . . . . . . . . . . 1 . 4 . . . . . 3 . . . . 8 2 . Builder 20 | . 1 . . . . . . . 1 . . . 2 . . . . 2 . . . . . 7 7 . Tunneler 4 | 3 . . . . . . . . . . . . . . . . . . . . . . . . 1 . Hauler 10 | . . . . . . . 2 . . . 1 . 1 . . . . 2 4 . . . . . . . Recycler 25 | 1 1 . . . . . 3 . . . . . 7 . . . . 6 3 . . . . 2 2 . Minesweeper 1 | . . . . . . . . . . . . . . 1 . . . . . . . . . . . . Mechanic 1 | . . . . . . . . . . . . . . . . . . . . . . . . 1 . . Operator 12 | . 1 . . . . . . . . . 1 . 2 . . . . 1 . . 7 . . . . . Watcher 19 | . 1 . 1 . . . 4 . . 1 1 . 2 . . . . 3 3 1 . . . 2 . . Swarmer 56 | . 6 . 3 3 . . 4 3 4 7 . 3 . 4 . . 3 1 2 . . . 3 . 10 . Cutter 5 | . . . . . . . . 1 . . . 4 . . . . . . . . . . . . . . Grunt 99 | . 4 . 1 . . . 9 13 5 6 4 9 2 1 . . . 3 8 . . . 7 12 15 . Brawler 5 | . . . . . . . . 2 . 1 . . . . . . . . 1 . . . 1 . . . Duelist 5 | . . . . . . . 2 . . 1 . . . . . . . . . . . . 1 . 1 . Sentry 43 | . . . 3 . . . 3 4 2 3 . 3 4 . 1 . 1 . 11 . 4 . . 1 3 . Specialist 9 | . . . . . . . . . . . 2 . . . . . . 2 2 . . . . 2 1 . Hunter 13 | . . . . . . . 2 . . 2 2 . 1 . . . 2 . . 2 . . . 2 . . Programmer 30 | . . . . . . . . 2 . 3 3 3 6 . 1 . . 1 . . . . . 4 7 . Heavy 4 | . . . . . . . . . 1 . . . . . . . . 1 . . . . . 2 . . Cetus Guard 4 | . . . . . . . . . . . . . . . . . . . . 4 . . . . . . Packrat 1 | . . . . . . . . . . . . . . 1 . . . . . . . . . . . . Samaritan 1 | . . . . . . . . . . . . . . 1 . . . . . . . . . . . . Thug 1 | . . . . . . . . . . . . . . . . . . . 1 . . . . . . . Savage 1 | . . . . . . . . . . . . . 1 . . . . . . . . . . . . . Mutant 1 | . . . . . . . . . . . . . . . 1 . . . . . . . . . . . Best Kill Streak 14 | 2 7 . 4 3 . . 10 7 3 8 5 5 5 4 1 . 3 5 4 3 4 . 6 13 14 . Combat Bots Only 10 | . 5 . 4 3 . . 10 7 3 8 4 5 2 4 1 . 3 3 4 3 2 . 6 8 10 . Max Kills in Single Turn 4 | 2 4 . 1 2 . . 2 2 2 3 1 3 2 3 1 . 1 3 2 1 1 . 1 3 3 . Gunslinging 1 | . . . . . . . 1 . 1 . . . . . . . . . 1 . . . . . 1 . Exploded 3 | . 3 . . 2 . . 1 2 . 3 . 3 . 3 . . . 2 2 . . . . 2 3 . Melee . | . . . . . . . . . . . . . . . . . . . . . . . . . . . Uniques/NPCs Destroyed . | . . . . . . . . . . . . . . . . . . . . . . . . . . . Combat | -11 -10 -10 -9 -9 -9 -8 -8 -8 -8 -8 -7 -7 -7 -7 -7 -7 -6 -6 -6 -6 -6 -6 -6 -5 -4 -4 -------- Run | Yrd Mat Min Mat Min Exi Min Mat Gar Mat Gar Fac Gar Fac Low Low Zio Pro Fac Ext Cet Arc Hub Gar Fac Fac Upp Hostile Shots Fired 2144 | . 35 . 34 11 . 2 108 59 65 102 49 188 85 9 11 . 51 141 341 64 12 . 63 109 554 51 Missed 736 | . 14 . 12 5 . . 32 15 25 21 13 53 34 2 4 . 14 27 131 23 3 . 16 22 250 20 Hits 1408 | . 21 . 22 6 . 2 76 44 40 81 36 135 51 7 7 . 37 114 210 41 9 . 47 87 304 31 Melee 11 | . . . . . . . 1 . . . . 4 . . . . . . . . . . 3 . 3 . Projectile 1397 | . 21 . 22 6 . 2 75 44 40 81 36 131 51 7 7 . 37 114 210 41 9 . 44 87 301 31 AOE 4 | . . . . . . . . 1 . . . 3 . . . . . . . . . . . . . . Critical Strikes 58 | . 1 . . . . . 3 4 3 5 1 7 2 . . . 1 4 3 5 . . 3 5 9 2 Part Disruptions 2 | . . . . . . . . . . . . . . . . . . . . . . . . 1 1 . Damage Taken 22486 | . 274 . 256 46 . 37 1327 706 920 1010 543 1821 538 135 101 . 425 2193 2124 965 214 . 895 2248 5254 454 Core 2903 | . 89 . 7 6 . 18 155 85 133 136 16 142 104 23 . . . 259 100 209 28 . 134 108 742 409 Absorbed by Shields 624 | . . . . . . . . . . 4 8 48 100 8 8 . 140 164 . . . . . 144 . . Reduced by Siege Mode 59 | . . . . . . . . . . . . . . . . . . . . . . . . 59 . . Redirected to Shielding 19 | . . . . . . . . . 4 15 . . . . . . . . . . . . . . . . Ignored by Resistances 504 | . . . . . . . . . . 57 76 62 . . . . . 168 141 . . . . . . . Regen/Repaired (Parts) 357 | . . . . . . . 47 . . . . . 56 . . . . . 111 . . . . 143 . . Core Remaining (%) 60 | 100 . 64 . . . 92 . . . 7 . . . . . . 59 . . . . . 14 89 . . Volleys Fired 815 | 10 23 . 15 6 . . 64 62 35 48 27 49 62 10 6 . 13 51 95 26 34 . 40 53 86 . Largest 5 | 2 2 . 3 3 . . 3 3 3 3 3 3 3 3 3 . 3 3 3 3 3 . 3 5 5 . Hottest 235 | 40 112 . 135 135 . . 135 106 127 159 90 121 160 136 148 . 120 155 163 163 163 . 138 159 235 . Shots Fired 2072 | 20 43 . 45 11 . . 160 135 98 115 79 127 141 29 19 . 35 121 229 62 77 . 111 232 183 . Gun 1685 | 20 40 . 45 9 . . 154 126 92 111 76 121 69 27 13 . 32 90 187 29 62 . 106 193 83 . Cannon 332 | . . . . . . . 3 . 6 . 1 . 72 . 6 . 3 26 35 33 15 . 5 35 92 . Launcher 55 | . 3 . . 2 . . 3 9 . 4 2 6 . 2 . . . 5 7 . . . . 4 8 . Special . | . . . . . . . . . . . . . . . . . . . . . . . . . . . Kinetic 1561 | 20 19 . 15 1 . . 93 96 69 61 77 107 105 18 15 . 33 94 150 61 64 . 104 228 131 . Thermal 438 | . 21 . 30 8 . . 64 30 29 50 . 14 36 9 4 . 2 22 72 1 13 . 7 . 26 . Explosive 53 | . 3 . . 2 . . 3 9 . 4 2 6 . 2 . . . 5 5 . . . . 4 8 . Electromagnetic 20 | . . . . . . . . . . . . . . . . . . . 2 . . . . . 18 . Robot Hit Streak 32 | 7 5 . 9 6 . . 17 15 11 12 11 11 13 8 15 . 20 32 23 7 15 . 18 25 13 . Robot Miss Streak 6 | 2 3 . 3 1 . . 3 3 4 2 5 4 6 2 2 . 4 3 5 4 4 . 4 3 4 . Penetration Max 2 | . . . . . . . . . . . . 1 . . . . . 1 2 1 1 . 1 2 1 . Secondary Targets 38 | . . . 1 . . . 6 4 1 2 2 4 . . . . 2 2 2 . . . 3 2 7 . Max Gunslinging Chain 2 | . . . 1 . . . 1 1 1 1 1 1 . . . . 1 1 1 . . . 1 1 2 . Shots Hit Robots 1364 | 13 25 . 29 8 . . 112 82 68 84 48 91 85 18 10 . 26 89 154 38 46 . 74 150 114 . Core Hits 869 | 6 20 . 13 4 . . 48 51 24 47 39 64 55 16 10 . 18 53 151 17 26 . 29 78 100 . Critical Kills 20 | . . . . . . . . . . . 2 . . . . . 1 . 6 5 4 . . 2 . . Critical Parts Destroyed 41 | . 1 . . . . . . . . 1 1 1 . . . . . 2 9 10 4 . 5 5 2 . Critical Strikes 85 | . 1 . 2 . . . 2 . . 3 3 3 2 . . . 1 6 17 16 10 . 7 8 4 . Burn 13 | . . . 2 . . . 2 . . 2 . 2 . . . . . 3 2 . . . . . . . Destroy 65 | . 1 . . . . . . . . 1 3 . . . . . 1 2 15 16 10 . 7 7 2 . Blast 6 | . . . . . . . . . . . . . 2 . . . . 1 . . . . . 1 2 . Smash 1 | . . . . . . . . . . . . 1 . . . . . . . . . . . . . . Melee Attacks 123 | . . . . . . . 16 5 4 12 12 19 25 . . 5 . . 21 . . . 1 3 . . Impact 108 | . . . . . . . 16 5 4 12 12 19 25 . . . . . 11 . . . 1 3 . . Slashing 10 | . . . . . . . . . . . . . . . . . . . 10 . . . . . . . Piercing 5 | . . . . . . . . . . . . . . . . 5 . . . . . . . . . . Sneak Attacks 4 | . . . . . . . . . . 1 1 . 1 . . . . . 1 . . . . . . . Combat Hostiles . | . . . . . . . . . . . . . . . . . . . . . . . . . . . Follow-up Attacks . | . . . . . . . . . . . . . . . . . . . . . . . . . . . Damage Inflicted 41616 | 143 653 . 460 250 . . 2271 2535 1172 1904 1007 2628 2146 659 236 . 491 2809 5120 1216 1683 . 1933 6041 6259 . Guns 25179 | 143 378 . 460 129 . . 1845 1401 1107 1434 746 1603 1109 368 213 . 400 1571 3502 564 1223 . 1845 3966 1172 . Cannons 6504 | . . . . . . . 72 . 65 . 26 . 944 . 23 . 91 457 567 652 460 . 88 917 2142 . Explosions 8883 | . 275 . . 121 . . 354 1134 . 378 100 409 43 291 . . . 781 927 . . . . 1140 2930 . Melee 1017 | . . . . . . . . . . 92 135 616 50 . . . . . 124 . . . . . . . Ramming 33 | . . . . . . . . . . . . . . . . . . . . . . . . 18 15 . Kinetic 24826 | 143 170 . 117 12 . . 1053 1117 801 744 772 1428 1399 158 128 . 415 1655 2803 1179 1272 . 1766 4883 2811 . Thermal 7457 | . 208 . 343 117 . . 864 284 371 690 . 175 654 210 108 . 76 373 1266 37 411 . 167 337 766 . Explosive 7852 | . 275 . . 121 . . 354 1134 . 378 100 409 . 291 . . . 781 662 . . . . 803 2544 . Electromagnetic 431 | . . . . . . . . . . . . . 43 . . . . . 265 . . . . . 123 . Impact 893 | . . . . . . . . . . 92 135 616 50 . . . . . . . . . . . . . Slashing 124 | . . . . . . . . . . . . . . . . . . . 124 . . . . . . . Piercing . | . . . . . . . . . . . . . . . . . . . . . . . . . . . Highest Corruption 25 | . . . . . . . . 5 5 9 1 15 18 18 20 25 . 2 5 5 5 5 5 3 6 6 Average Corruption 9 | . . . . . . . . 4 5 8 1 9 15 18 19 22 . 1 4 5 5 5 5 2 2 6 Corruption Purged 5 | . . . . . . . . . . . . 5 . . . . . . . . . . . . . . Corruption Blocked . | . . . . . . . . . . . . . . . . . . . . . . . . . . . Effects 574 | . . . . . . . . 21 22 48 . 45 152 38 50 30 . 12 89 16 14 3 14 10 10 . Message Errors 103 | . . . . . . . . 3 3 7 . 8 30 3 6 10 . 2 17 3 3 1 2 2 3 . Matter Fused 156 | . . . . . . . . 7 8 8 . 13 42 18 12 8 . 2 24 4 4 . 2 1 3 . Heat Flow Errors 75 | . . . . . . . . 3 1 6 . 2 21 4 6 5 . 2 11 4 . 1 3 3 3 . Energy Discharges 69 | . . . . . . . . 1 2 5 . 7 15 5 10 4 . 3 10 1 2 1 1 1 1 . Parts Rejected 5 | . . . . . . . . . 1 . . . . . 1 . . . 2 . . . . 1 . . Parts Fused 8 | . . . . . . . . . . 1 . . 4 . 1 . . . 1 . 1 . . . . . Data Loss (minor) 76 | . . . . . . . . 4 3 10 . 7 21 2 6 2 . 2 10 4 3 . 2 . . . Data Loss (major) 30 | . . . . . . . . 1 1 2 . 4 7 4 2 1 . . 4 . 1 . 2 1 . . Misfires 24 | . . . . . . . . 1 1 1 . 1 9 2 4 . . . 3 . . . 1 1 . . Alerts 12 | . . . . . . . . . 1 3 . 1 1 . 2 . . . 4 . . . . . . . Weapon Failures 16 | . . . . . . . . 1 1 5 . 2 2 . . . . 1 3 . . . 1 . . . Overload Shots . | . . . . . . . . . . . . . . . . . . . . . . . . . . . Overflow Damage 1035 | . 21 . . 6 . . 6 . . 57 . 300 69 . . . . 12 24 34 5 . . 59 442 . Projectiles 228 | . . . . . . . . . . . . . 29 . . . . 10 . 34 5 . . 22 128 . Explosions 434 | . 21 . . 6 . . 6 . . . . 48 . . . . . 2 . . . . . 37 314 . Melee 373 | . . . . . . . . . . 57 . 252 40 . . . . . 24 . . . . . . . Knockbacks 31 | . . . . . . . . . . 1 1 1 3 . . . . 3 1 . . . 1 7 13 . Impact 4 | . . . . . . . . . . 1 1 1 . . . . . . . . . . . . 1 . Kinetic 24 | . . . . . . . . . . . . . 3 . . . . 3 1 . . . 1 6 10 . Secondary 3 | . . . . . . . . . . . . . . . . . . . . . . . . 1 2 . Self-Inflicted Damage 360 | . . . . . . . . 26 . 31 64 . . 39 . . . 79 . . . . . 24 97 . Shots 11 | . . . . . . . . 1 . 1 1 . . 2 . . . 4 . . . . . 1 1 . Rammed 3 | . . . . . . . 1 . . . . . . . . . . . . . . . . 1 1 . Targets Rammed 6 | . . . . . . . 1 . . . . . . . . . . . . . . . . 1 4 . Kicked 3 | . . . . . . . . . . . . . . . . . . . . . . . . . 3 . Crushed . | . . . . . . . . . . . . . . . . . . . . . . . . . . . Highest Temperature 588 | . 10 . 42 3 . . 136 253 363 240 344 365 270 207 218 225 96 177 364 225 213 92 234 250 588 . Average Temperature 79 | . 10 . 14 2 . . 33 44 112 56 109 99 75 55 70 101 55 47 99 72 102 55 59 42 141 . Received Heat Transfer 4330 | . 90 . 60 . . 18 405 297 126 231 102 421 70 12 32 . . 491 729 . 27 . 315 371 533 . Effects 14 | . . . . . . . . . . . 1 . . . . . . . 3 . . . . . 10 . Energy Bleed 5 | . . . . . . . . . . . 1 . . . . . . . 3 . . . . . 1 . Interference 5 | . . . . . . . . . . . . . . . . . . . . . . . . . 5 . Short Circuit 1 | . . . . . . . . . . . . . . . . . . . . . . . . . 1 . Damage (major) 2 | . . . . . . . . . . . . . . . . . . . . . . . . . 2 . Damage (core) 1 | . . . . . . . . . . . . . . . . . . . . . . . . . 1 . Siege Activations 3 | . . . . . . . . . . . . . . . . . . . . . . . . 3 . . Total Turns 58 | . . . . . . . . . . . . . . . . . . . . . . . . 58 . . Longest Duration 34 | . . . . . . . . . . . . . . . . . . . . . . . . 34 . . Martial Activations . | . . . . . . . . . . . . . . . . . . . . . . . . . . . Shielding Activations . | . . . . . . . . . . . . . . . . . . . . . . . . . . . Robots Disrupted 1 | . . . . . . . . . . . . . . . . . . . . . . . . . 1 . Combat Hostiles . | . . . . . . . . . . . . . . . . . . . . . . . . . . . Robots Corrupted 6 | . . . . . . . . . . 1 . 3 1 . . . . . . . . . . 1 . . Combat Hostiles . | . . . . . . . . . . . . . . . . . . . . . . . . . . . Parts Fried 4 | . . . . . . . . . . . . 3 1 . . . . . . . . . . . . . Impact Corruptions 11 | . . . . . . . . . . 3 . 5 2 . . . . . . . . . . 1 . . Robots Melted . | . . . . . . . . . . . . . . . . . . . . . . . . . . . Combat Hostiles . | . . . . . . . . . . . . . . . . . . . . . . . . . . . Parts Melted 22 | . . . 2 . . . 2 1 . 8 . . 2 . . . . . 4 . . . . . 3 . Heat Transferred 15279 | . 444 . 888 259 . . 2010 592 888 1517 . 555 1425 475 225 . 160 1208 2682 37 782 . 103 150 879 . Parts Sabotaged . | . . . . . . . . . . . . . . . . . . . . . . . . . . . Parts Stolen . | . . . . . . . . . . . . . . . . . . . . . . . . . . . Parts Stripped . | . . . . . . . . . . . . . . . . . . . . . . . . . . . Power Chain Reactions . | . . . . . . . . . . . . . . . . . . . . . . . . . . . Alert | -11 -10 -10 -9 -9 -9 -8 -8 -8 -8 -8 -7 -7 -7 -7 -7 -7 -6 -6 -6 -6 -6 -6 -6 -5 -4 -4 ------- Run | Yrd Mat Min Mat Min Exi Min Mat Gar Mat Gar Fac Gar Fac Low Low Zio Pro Fac Ext Cet Arc Hub Gar Fac Fac Upp Maximum Alert Level 4 | . . . . . . . 1 4 2 3 2 4 2 . . . . . 4 3 1 . 1 2 3 . Low Security (%) 37 | 100 100 100 100 100 . 100 54 4 . . . . 14 . . . . 100 55 . . 100 59 82 . . Level 1 25 | . . . . . . . 45 20 38 12 42 7 57 . . . . . 3 . 100 . 40 6 52 . Level 2 17 | . . . . . . . . 21 61 25 57 18 27 . . . . . 5 25 . . . 11 8 . Level 3 13 | . . . . . . . . 14 . 61 . 55 . . . . . . 13 74 . . . . 38 . Level 4 6 | . . . . . . . . 39 . . . 19 . . . . . . 22 . . . . . . . Level 5 . | . . . . . . . . . . . . . . . . . . . . . . . . . . . High Security . | . . . . . . . . . . . . . . . . . . . . . . . . . . . Max Security . | . . . . . . . . . . . . . . . . . . . . . . . . . . . Peak Influence 1337 | 10 167 29 106 67 . . 308 1250 609 1058 555 1310 687 . . . . 171 1337 826 334 72 335 661 1093 . Initial 743 | . . 29 . 27 . . . 185 609 239 555 326 687 . . . . . 6 743 270 72 . 175 320 . Average 383 | 1 66 1 47 17 . . 166 768 460 701 397 888 337 . . . . 34 466 734 269 36 181 147 555 . Influence Increases 12239 | 20 324 . 262 77 . . 722 1075 368 849 473 1134 614 115 50 . 140 460 2376 256 220 8 345 951 1400 . Destroy 0b10 Robot/C 6260 | . 200 . 140 60 . . 400 500 240 460 220 480 260 100 40 . 120 160 1160 200 80 . 240 460 740 . Destroy 0b10 Robot/NC 615 | 20 20 . 5 . . . 45 . 5 5 15 15 90 5 . . . 70 115 10 35 . . 100 60 . Destroy Leader 1034 | . 42 . 52 10 . . 102 40 60 30 64 20 124 10 10 . 20 50 126 10 . . 10 114 140 . Allied During Kill 761 | . . . . . . . . . . . . 9 . . . . . . 741 11 . . . . . . Successful Hack 268 | . 15 . 34 . . . 21 . 10 14 22 21 30 . . . . 28 52 6 . 8 . . 7 . Select Force Hacks 60 | . . . . . . . . . . . 60 . . . . . . . . . . . . . . . Disable Machine 585 | . . . . . . . 60 30 . . 30 30 75 . . . . 60 15 . 90 . . 105 90 . Anti-Garrison Action 1250 | . . . . . . . . 450 . 250 . 500 . . . . . . . . . . 50 . . . Destroy Structure 866 | . 17 . 1 7 . . 34 40 8 75 32 59 35 . . . . 47 62 19 15 . 15 112 288 . Partial Spotted 45 | . . . . . . . . . . . 15 . . . . . . . 15 . . . . . 15 . Lose Combat Pursuer 495 | . 30 . 30 . . . 60 15 45 15 15 . . . . . . 45 90 . . . 30 60 60 . Influence Decreases 11622 | 20 248 76 192 147 . . 437 110 1249 160 1065 290 1511 527 51 . 140 447 1061 907 689 216 10 631 1027 411 Entered New Map 4392 | . . 47 . 43 . . . 100 641 130 503 140 623 153 1 . . . 7 585 407 136 . 160 335 381 Time Decay 5650 | 20 248 29 192 104 . . 407 . 398 . 562 . 738 374 50 . 140 347 554 302 262 80 . 401 422 20 Lost Part 820 | . . . . . . . 30 10 60 30 . 130 . . . . . 100 80 20 . . 10 70 270 10 Lost Ally 460 | . . . . . . . . . . . . 20 . . . . . . 420 . 20 . . . . . Purge Threat 300 | . . . . . . . . . 150 . . . 150 . . . . . . . . . . . . . Squads Dispatched 66 | . 1 . 1 . . . 4 . 3 . 12 . 12 . . . . 7 8 1 . . . 7 10 . Investigation 18 | . . . . . . . 2 . 1 . 5 . 2 . . . . 2 2 1 . . . 1 2 . Extermination 18 | . . . . . . . . . . . 3 . 7 . . . . 3 . . . . . 2 3 . Reinforcement 25 | . 1 . 1 . . . 2 . 1 . 2 . 3 . . . . 2 4 . . . . 4 5 . Assault 4 | . . . . . . . . . . . 2 . . . . . . . 2 . . . . . . . Garrison 1 | . . . . . . . . . 1 . . . . . . . . . . . . . . . . . Intercept . | . . . . . . . . . . . . . . . . . . . . . . . . . . . Searches Triggered . | . . . . . . . . . . . . . . . . . . . . . . . . . . . Construction Impeded 8 | . . . . . . . . . . . . . . . . . . . 4 . . . . 1 3 . Haulers Reinforced . | . . . . . . . . . . . . . . . . . . . . . . . . . . . Active Scanning Responses . | . . . . . . . . . . . . . . . . . . . . . . . . . . . Cargo Convoy Interrupts 1 | . . . . . . . . . . . . . . . . . . . . . . . . 1 . . Stealth | -11 -10 -10 -9 -9 -9 -8 -8 -8 -8 -8 -7 -7 -7 -7 -7 -7 -6 -6 -6 -6 -6 -6 -6 -5 -4 -4 --------- Run | Yrd Mat Min Mat Min Exi Min Mat Gar Mat Gar Fac Gar Fac Low Low Zio Pro Fac Ext Cet Arc Hub Gar Fac Fac Upp Distress Signals 23 | . 2 . 2 . . . 5 . 1 1 . . . . . . . 1 5 2 1 . . 1 2 . Communications Jammed 7 | . . . . . . . . . . . . . . . . . . 7 . . . . . . . . Distress Signals 7 | . . . . . . . . . . . . . . . . . . 7 . . . . . . . . Times Spotted 445 | . 18 . 11 4 . 2 39 25 20 24 23 24 19 5 6 . 6 28 58 10 16 . 13 30 54 10 Peak Tracking Total 12 | . 4 . 5 3 . 3 4 4 5 6 4 5 2 4 4 . 3 5 7 5 2 . 5 8 10 12 Tactical Retreats 28 | . 2 . 2 . . . 3 1 3 1 1 . . . . . . 3 5 . . . 2 1 4 . Traps | -11 -10 -10 -9 -9 -9 -8 -8 -8 -8 -8 -7 -7 -7 -7 -7 -7 -6 -6 -6 -6 -6 -6 -6 -5 -4 -4 ------- Run | Yrd Mat Min Mat Min Exi Min Mat Gar Mat Gar Fac Gar Fac Low Low Zio Pro Fac Ext Cet Arc Hub Gar Fac Fac Upp Traps Triggered 24 | . 2 . . . . . 2 . 1 4 1 1 6 . . . . . 7 . . . . . . . Indirectly . | . . . . . . . . . . . . . . . . . . . . . . . . . . . Trap Hack Attempts . | . . . . . . . . . . . . . . . . . . . . . . . . . . . Triggered . | . . . . . . . . . . . . . . . . . . . . . . . . . . . Disarmed . | . . . . . . . . . . . . . . . . . . . . . . . . . . . Reprogrammed . | . . . . . . . . . . . . . . . . . . . . . . . . . . . Reused . | . . . . . . . . . . . . . . . . . . . . . . . . . . . Traps Extracted . | . . . . . . . . . . . . . . . . . . . . . . . . . . . Installed 2 | . . . . . . . . . . . . . . 2 . . . . . . . . . . . . Triggered . | . . . . . . . . . . . . . . . . . . . . . . . . . . . Machines | -11 -10 -10 -9 -9 -9 -8 -8 -8 -8 -8 -7 -7 -7 -7 -7 -7 -6 -6 -6 -6 -6 -6 -6 -5 -4 -4 ---------- Run | Yrd Mat Min Mat Min Exi Min Mat Gar Mat Gar Fac Gar Fac Low Low Zio Pro Fac Ext Cet Arc Hub Gar Fac Fac Upp Machines Disabled 61 | . . . . . . . 4 9 . 3 2 9 5 . 1 . . 4 1 2 6 . 2 7 6 . Max in Single Turn 6 | . . . . . . . 1 1 . 1 1 3 1 . 1 . . 1 1 1 1 . 1 6 3 . Garrison Access 3 | . . . . . . . . . . . . . 2 . . . . 1 . . . . . . . . Garrison Relay 17 | . . . . . . . . 6 . 3 . 7 . . . . . . . . . . 1 . . . Machines Repaired . | . . . . . . . . . . . . . . . . . . . . . . . . . . . Machines Dismantled . | . . . . . . . . . . . . . . . . . . . . . . . . . . . Machines Sabotaged . | . . . . . . . . . . . . . . . . . . . . . . . . . . . Overloaded Fab Kills . | . . . . . . . . . . . . . . . . . . . . . . . . . . . Hacking | -11 -10 -10 -9 -9 -9 -8 -8 -8 -8 -8 -7 -7 -7 -7 -7 -7 -6 -6 -6 -6 -6 -6 -6 -5 -4 -4 --------- Run | Yrd Mat Min Mat Min Exi Min Mat Gar Mat Gar Fac Gar Fac Low Low Zio Pro Fac Ext Cet Arc Hub Gar Fac Fac Upp Machines Accessed 88 | . 4 . 3 1 1 . 5 2 5 2 11 3 19 . . . . 5 14 3 1 2 . 3 4 . Terminals 55 | . 4 . 2 . . . 3 2 4 2 5 3 9 . . . . 3 13 3 . 1 . . 1 . Fabricators 7 | . . . . . . . . . . . 2 . 2 . . . . . . . . . . 1 2 . Repair Stations 8 | . . . . . . . 1 . . . . . 2 . . . . 1 1 . . . . 2 1 . Recycling Units 4 | . . . . . . . . . . . 2 . 2 . . . . . . . . . . . . . Scanalyzers 3 | . . . 1 . . . . . . . 1 . 1 . . . . . . . . . . . . . Garrison Access 8 | . . . . . . . 1 . 1 . 1 . 3 . . . . 1 . . . 1 . . . . Total Hacks 234 | . 13 . 9 1 1 . 12 4 13 3 20 4 50 . . . . 12 29 7 25 11 . 7 13 . Successful 143 | . 7 . 8 1 1 . 9 1 5 1 11 2 27 . . . . 7 13 5 25 7 . 6 7 . Failed 90 | . 6 . 1 . . . 3 3 8 2 9 2 22 . . . . 5 16 2 . 4 . 1 6 . Catastrophic 16 | . 1 . . . . . . . . 1 1 1 8 . . . . 2 . . . 1 . . 1 . Database Lockouts 1 | . . . . . . . . . . . . . 1 . . . . . . . . . . . . . Manual 86 | . 10 . 4 . 1 . 5 . 8 . 12 . 19 . . 2 . 5 10 . . 3 . . 7 . Terminals 141 | . 13 . 6 . . . 8 4 10 3 11 4 21 . . . . 10 27 7 . 10 . . 7 . Fabricators 15 | . . . . . . . . . . . 2 . 5 . . . . . . . . . . 4 4 . Repair Stations 15 | . . . . . . . 2 . . . . . 5 . . . . 1 2 . . . . 3 2 . Recycling Units 5 | . . . . . . . . . . . 2 . 3 . . . . . . . . . . . . . Scanalyzers 20 | . . . 3 . . . . . . . 4 . 13 . . . . . . . . . . . . . Garrison Access 11 | . . . . . . . 2 . 3 . 1 . 3 . . . . 1 . . . 1 . . . . Terminal Hacks 64 | . 2 . 2 1 1 . 3 1 2 1 . 2 2 . . . . 3 8 5 25 5 . . 1 . Record 29 | . . . . . . . . . . . . . . . . . . . . 4 25 . . . . . Robot Analysis 2 | . . . . . . . . . . . . . . . . . . 1 1 . . . . . . . Open Door 10 | . . . . 1 . . . . . . . 1 . . . . . . 7 1 . . . . . . Open DSF 1 | . . . . . . . . . . . . . . . . . . 1 . . . . . . . . Branch Access Points 3 | . . . . . . . . . . . . . 1 . . . . 1 . . . . . . 1 . Emergency Access Points 2 | . . . . . . . . . . 1 . . . . . . . . . . . 1 . . . . Alert Level 2 | . . . . . . . 1 . . . . . . . . . . . . . . 1 . . . . Unreport Threat 2 | . . . . . . . . . 1 . . . 1 . . . . . . . . . . . . . Locate Traps 1 | . . . 1 . . . . . . . . . . . . . . . . . . . . . . . Dispatch Records 1 | . . . 1 . . . . . . . . . . . . . . . . . . . . . . . Patrol Status 1 | . 1 . . . . . . . . . . . . . . . . . . . . . . . . . Hauler Manifests 3 | . 1 . . . . . 1 . . . . . . . . . . . . . . 1 . . . . Registered Components 1 | . . . . . . . . . . . . . . . . . . . . . . 1 . . . . Zone Layout 3 | . . . . . . . 1 . 1 . . . . . . . . . . . . 1 . . . . Garrison Registry 1 | . . . . . . . . 1 . . . . . . . . . . . . . . . . . . Patrol Navigation 1 | . . . . . . . . . . . . 1 . . . . . . . . . . . . . . Proto ID Catalog 1 | . . . . . 1 . . . . . . . . . . . . . . . . . . . . . Fabricator Hacks 12 | . . . . . . . . . . . 1 . 3 . . . . . . . . . . 4 4 . Network Status 1 | . . . . . . . . . . . 1 . . . . . . . . . . . . . . . Load Schematic 6 | . . . . . . . . . . . . . 2 . . . . . . . . . . 2 2 . Build 5 | . . . . . . . . . . . . . 1 . . . . . . . . . . 2 2 . Repair Station Hacks 11 | . . . . . . . 2 . . . . . 4 . . . . . 2 . . . . 2 1 . Scan Component 6 | . . . . . . . 1 . . . . . 2 . . . . . 1 . . . . 1 1 . Repair 5 | . . . . . . . 1 . . . . . 2 . . . . . 1 . . . . 1 . . Recycling Unit Hacks 2 | . . . . . . . . . . . . . 2 . . . . . . . . . . . . . Process 1 | . . . . . . . . . . . . . 1 . . . . . . . . . . . . . Retrieve Matter 1 | . . . . . . . . . . . . . 1 . . . . . . . . . . . . . Scanalyzer 16 | . . . 3 . . . . . . . 3 . 10 . . . . . . . . . . . . . Insert Component 6 | . . . . . . . . . . . 1 . 5 . . . . . . . . . . . . . Analyze 4 | . . . . . . . . . . . 1 . 3 . . . . . . . . . . . . . Retrieve Study 6 | . . . 3 . . . . . . . 1 . 2 . . . . . . . . . . . . . Garrison Access Hacks 7 | . . . . . . . 1 . 1 . 1 . 2 . . . . 1 . . . 1 . . . . Unlock Access 4 | . . . . . . . 1 . 1 . 1 . . . . . . . . . . 1 . . . . Seal Access 3 | . . . . . . . . . . . . . 2 . . . . 1 . . . . . . . . Unauthorized Hacks 31 | . 5 . 3 . . . 3 . 2 . 6 . 4 . . . . 3 3 . . 1 . . 1 . Terminals 29 | . 5 . 3 . . . 3 . 2 . 4 . 4 . . . . 3 3 . . 1 . . 1 . Assimilate 1 | . . . . . . . . . . . 1 . . . . . . . . . . . . . . . Botnet 24 | . 4 . 2 . . . 2 . 1 . 3 . 4 . . . . 3 3 . . 1 . . 1 . Disrupt 4 | . 1 . 1 . . . 1 . 1 . . . . . . . . . . . . . . . . . Fabricators . | . . . . . . . . . . . . . . . . . . . . . . . . . . . Repair Stations . | . . . . . . . . . . . . . . . . . . . . . . . . . . . Recycling Units 2 | . . . . . . . . . . . 2 . . . . . . . . . . . . . . . Tunnel 2 | . . . . . . . . . . . 2 . . . . . . . . . . . . . . . Scanalyzers . | . . . . . . . . . . . . . . . . . . . . . . . . . . . Garrison Access . | . . . . . . . . . . . . . . . . . . . . . . . . . . . Data Cores Recovered 2 | . . . . . . . . . . . . . . . . . . 2 . . . . . . . . Used . | . . . . . . . . . . . . . . . . . . . . . . . . . . . Hacking Detections 70 | . 4 . 3 . . . 5 2 4 2 9 1 16 . . . . 4 9 2 . 2 . 3 4 . Full Trace Events 13 | . . . . . . . . 1 . . 2 1 2 . . . . 2 1 1 . . . 1 2 . Feedback Events 1 | . . . . . . . . . . . . . . . . . . . 1 . . . . . . . Corruption 1 | . . . . . . . . . . . . . . . . . . . 1 . . . . . . . Feedback Blocked . | . . . . . . . . . . . . . . . . . . . . . . . . . . . Robot Schematics Acquired 3 | . . . . . . . . . . . . . . . . 3 . . . . . . . . . . Robots Built . | . . . . . . . . . . . . . . . . . . . . . . . . . . . Authchips . | . . . . . . . . . . . . . . . . . . . . . . . . . . . Time . | . . . . . . . . . . . . . . . . . . . . . . . . . . . Total Robot Build Rating . | . . . . . . . . . . . . . . . . . . . . . . . . . . . Part Schematics Acquired 19 | . . . . . . . . . . . 1 . 3 . . 15 . . . . . . . . . . Parts Built 9 | . . . . . . . . . . . . . 2 . . . . . . . . . . 3 4 . Authchips 1 | . . . . . . . . . . . . . . . . . . . . . . . . 1 . . Time 474 | . . . . . . . . . . . . . 84 . . . . . . . . . . 264 126 . Total Part Build Rating 40 | . . . . . . . . . . . . . 8 . . . . . . . . . . 16 16 . Part Studies Acquired 6 | . . . 3 . . . . . . . 1 . 2 . . . . . . . . . . . . . Parts Repaired 5 | . . . . . . . 1 . . . . . 2 . . . . . 1 . . . . 1 . . Time 174 | . . . . . . . 32 . . . . . 76 . . . . . 16 . . . . 50 . . Parts Recycled . | . . . . . . . . . . . . . . . . . . . . . . . . . . . Recycled Matter 13 | . . . . . . . . . . . . . 13 . . . . . . . . . . . . . Retrieved Matter 13 | . . . . . . . . . . . . . 13 . . . . . . . . . . . . . Retrieved Components . | . . . . . . . . . . . . . . . . . . . . . . . . . . . Parts Scanalyzed 4 | . . . . . . . . . . . 1 . 3 . . . . . . . . . . . . . Part Schematics Acquired 4 | . . . . . . . . . . . 1 . 3 . . . . . . . . . . . . . Parts Damaged . | . . . . . . . . . . . . . . . . . . . . . . . . . . . Bothacking | -11 -10 -10 -9 -9 -9 -8 -8 -8 -8 -8 -7 -7 -7 -7 -7 -7 -6 -6 -6 -6 -6 -6 -6 -5 -4 -4 ------------ Run | Yrd Mat Min Mat Min Exi Min Mat Gar Mat Gar Fac Gar Fac Low Low Zio Pro Fac Ext Cet Arc Hub Gar Fac Fac Upp Used RIF Installer . | . . . . . . . . . . . . . . . . . . . . . . . . . . . Robots Hacked . | . . . . . . . . . . . . . . . . . . . . . . . . . . . Non-combat . | . . . . . . . . . . . . . . . . . . . . . . . . . . . Combat . | . . . . . . . . . . . . . . . . . . . . . . . . . . . Robot Hacks Applied . | . . . . . . . . . . . . . . . . . . . . . . . . . . . Relay Couplers Released 75 | . . . . . . . . 23 . 17 . 30 . . . . . . . . . . 5 . . . Machine Destruction 71 | . . . . . . . . 23 . 13 . 30 . . . . . . . . . . 5 . . . Programmers 4 | . . . . . . . . . . 4 . . . . . . . . . . . . . . . . Fabnet Peak Effective % . | . . . . . . . . . . . . . . . . . . . . . . . . . . . Robots Rewired 20 | . . . . . . . . . . . . . . . . . . . 20 . . . . . . . Allies Hacked . | . . . . . . . . . . . . . . . . . . . . . . . . . . . Hacks Repelled . | . . . . . . . . . . . . . . . . . . . . . . . . . . . Allies | -11 -10 -10 -9 -9 -9 -8 -8 -8 -8 -8 -7 -7 -7 -7 -7 -7 -6 -6 -6 -6 -6 -6 -6 -5 -4 -4 -------- Run | Yrd Mat Min Mat Min Exi Min Mat Gar Mat Gar Fac Gar Fac Low Low Zio Pro Fac Ext Cet Arc Hub Gar Fac Fac Upp Total Allies 32 | . . . . . . . . . . . 1 2 . . . . . . 29 . . . . . . . Largest Group 18 | . . . . . . . . . . . 1 2 1 . . . . . 18 1 1 . . . . . Highest-Rated Group 534 | . . . . . . . . . . . 10 45 20 . . . . . 534 39 39 . . . . . Highest-Rated Ally 39 | . . . . . . . . . . . 10 25 20 . . . . . 39 39 39 . . . . . Initial Warlord ECA Mod 25 | . . . . . . . . . 10 10 14 14 25 25 25 25 24 24 23 23 23 23 23 23 22 22 Warlord Squad Rendezvous 1 | . . . . . . . . . . . . . . . . . . 1 . . . . . . . . Geek 1 | . . . . . . . . . . . . . . . . . . 1 . . . . . . . . Total Orders 2 | . . . . . . . . . . . . . . . . . . . 2 . . . . . . . STAY 1 | . . . . . . . . . . . . . . . . . . . 1 . . . . . . . FOLLOW 1 | . . . . . . . . . . . . . . . . . . . 1 . . . . . . . Ally Attacks 322 | . . . . . . . . . . . . 8 . . . . . . 283 29 2 . . . . . Total Damage 6139 | . . . . . . . . . . . . 232 . . . . . . 5629 268 10 . . . . . Kills 57 | . . . . . . . . . . . . 2 . . . . . . 50 5 . . . . . . Allies Corrupted 2 | . . . . . . . . . . . . . . . . . . . 2 . . . . . . . Allies Melted . | . . . . . . . . . . . . . . . . . . . . . . . . . . . Intel | -11 -10 -10 -9 -9 -9 -8 -8 -8 -8 -8 -7 -7 -7 -7 -7 -7 -6 -6 -6 -6 -6 -6 -6 -5 -4 -4 ------- Run | Yrd Mat Min Mat Min Exi Min Mat Gar Mat Gar Fac Gar Fac Low Low Zio Pro Fac Ext Cet Arc Hub Gar Fac Fac Upp Active Infowar (turns) 262 | 12 25 . . . . . . . . . . . 1 . . . . 33 . 1 . . . . 168 22 Optics 1 | . . . . . . . . . . . . . . . . . . . . 1 . . . . . . Sensors 23 | . . . . . . . . . . . . . 1 . . . . . . . . . . . . 22 Terrain 168 | . . . . . . . . . . . . . . . . . . . . . . . . . 168 . Seismic 37 | 12 25 . . . . . . . . . . . . . . . . . . . . . . . . . Jamming 33 | . . . . . . . . . . . . . . . . . . 33 . . . . . . . . Robot Analysis Total 2 | . . . . . . . . . . . . . . . . . . 1 1 . . . . . . . Derelict Logs Recovered 8 | . . 2 . 1 . . . . . . . . . 2 1 1 . . . . . . . . . 1 Drone Launches . | . . . . . . . . . . . . . . . . . . . . . . . . . . . Drone Recoveries . | . . . . . . . . . . . . . . . . . . . . . . . . . . . Exploration | -11 -10 -10 -9 -9 -9 -8 -8 -8 -8 -8 -7 -7 -7 -7 -7 -7 -6 -6 -6 -6 -6 -6 -6 -5 -4 -4 ------------- Run | Yrd Mat Min Mat Min Exi Min Mat Gar Mat Gar Fac Gar Fac Low Low Zio Pro Fac Ext Cet Arc Hub Gar Fac Fac Upp Turns Passed 30056 | 140 729 658 430 367 349 84 1487 1217 945 1302 1673 1271 3756 860 1174 3642 506 1425 3824 678 564 172 572 1158 1030 43 Spaces Moved 14436 | 70 377 403 194 207 218 53 634 433 452 566 909 611 2018 496 699 1928 274 576 1462 281 249 104 253 402 488 79 Core 143 | 16 . . . . . . . . . . . . . . . . . 15 . . . . . . 33 79 Treads 13941 | 54 377 403 194 207 218 53 634 433 452 566 909 611 2018 496 699 1928 274 375 1308 281 249 104 253 402 443 . Legs 12 | . . . . . . . . . . . . . . . . . . . . . . . . . 12 . Wheels 340 | . . . . . . . . . . . . . . . . . . 186 154 . . . . . . . Hover . | . . . . . . . . . . . . . . . . . . . . . . . . . . . Flight . | . . . . . . . . . . . . . . . . . . . . . . . . . . . Fastest Speed 50 | 50 160 160 160 160 160 160 145 145 145 158 163 160 155 163 163 163 166 130 160 160 160 160 160 160 50 50 Average Speed 168 | 136 160 160 160 160 160 160 159 146 149 182 163 161 160 163 163 163 166 207 213 196 178 160 160 160 153 50 Slowest Speed 950 | 160 160 160 160 160 160 160 160 150 225 245 243 240 163 163 163 166 166 950 245 213 213 160 160 160 240 50 Overloaded Moves . | . . . . . . . . . . . . . . . . . . . . . . . . . . . Propulsion Burnouts . | . . . . . . . . . . . . . . . . . . . . . . . . . . . Robots Hopped . | . . . . . . . . . . . . . . . . . . . . . . . . . . . Potential Cave-ins 7 | . . . . . . . . . . . . . 5 . . . . 2 . . . . . . . . Cave-ins Triggered 2 | . . . . . . . 1 . . . . 1 . . . . . . . . . . . . . . Exploration Rate (%) 49 | 4 63 79 16 51 61 23 50 58 37 70 26 72 53 78 86 83 44 16 97 85 93 12 33 11 20 14 Regions Visited 26 Branch Regions 13 Pre-discovered Areas 4 | . . 1 . . . . . . . . 2 . . 1 . . . . . . . . . . . . Known Exits Taken 8 | . . . . . . . 1 . 1 . 1 . 1 . 1 . . 1 . . . 1 . . 1 . Unknown Exits Taken 14 | 1 1 1 1 1 1 1 . . . . . . . 1 . 1 1 . 1 1 1 . . 1 . . Scrap Searched 13 | . . 2 . 2 . . . . . . . . . 2 2 4 . . . . . . . . . 1 Spaces Dug 132 | . 3 . . 4 . . 16 . 4 . 22 21 28 . . 4 . 17 . . . . . 4 9 . Terrain Destroyed 655 | . 16 . . 7 . . 34 11 6 20 38 25 36 38 1 4 1 52 93 13 18 . 2 78 162 . Melee 61 | . . . . . . . 16 . 4 . 10 3 21 . . 4 . . . . . . . 3 . . Projectile 131 | . . . . . . . . . 2 1 . 1 15 1 1 . 1 5 12 13 18 . 2 25 34 . AOE 463 | . 16 . . 7 . . 18 11 . 19 28 21 . 37 . . . 47 81 . . . . 50 128 . Terrain Rammed . | . . . . . . . . . . . . . . . . . . . . . . . . . . . Walls Destroyed . | . . . . . . . . . . . . . . . . . . . . . . . . . . . Machines Disabled . | . . . . . . . . . . . . . . . . . . . . . . . . . . . Actions | -11 -10 -10 -9 -9 -9 -8 -8 -8 -8 -8 -7 -7 -7 -7 -7 -7 -6 -6 -6 -6 -6 -6 -6 -5 -4 -4 --------- Run | Yrd Mat Min Mat Min Exi Min Mat Gar Mat Gar Fac Gar Fac Low Low Zio Pro Fac Ext Cet Arc Hub Gar Fac Fac Upp Total 18510 | 96 460 417 284 235 219 52 987 920 647 727 1028 769 2389 526 722 2427 298 704 1949 358 307 110 344 807 646 82 Wait 2048 | . 26 4 52 5 . . 204 397 105 55 19 44 180 8 8 414 7 16 133 6 5 3 42 299 15 1 Move 14411 | 69 376 402 193 206 217 52 633 432 452 565 908 610 2017 495 698 1927 273 575 1461 280 248 103 252 401 487 79 Hop . | . . . . . . . . . . . . . . . . . . . . . . . . . . . Pick Up 233 | 9 14 6 6 5 1 . 12 2 10 6 13 9 23 4 2 27 . 17 24 11 7 . 1 14 9 1 Fast Attach 98 | 2 1 . 1 2 . . 7 2 6 8 3 4 15 . 3 6 . 7 14 4 . 2 2 6 3 . Attach 111 | 5 1 . 3 . . . 4 2 6 1 4 12 2 1 . 11 . 12 9 7 2 . 1 10 17 1 Detach 15 | . . . . . . . . . . 1 1 . . 1 . 3 . 1 2 2 . . . . 4 . Swap 262 | . 9 2 5 4 . . 23 14 16 13 22 22 27 2 1 5 4 15 39 7 6 . 5 10 11 . Drop 267 | 1 10 3 9 7 1 . 23 4 13 12 19 . 38 3 4 29 1 10 38 15 5 2 . 10 10 . Fire 815 | 10 23 . 15 6 . . 64 62 35 48 27 49 62 10 6 . 13 51 95 26 34 . 40 53 86 . Melee 123 | . . . . . . . 16 5 4 12 12 19 25 . . 5 . . 21 . . . 1 3 . . Ram . | . . . . . . . . . . . . . . . . . . . . . . . . . . . Kick 3 | . . . . . . . . . . . . . . . . . . . . . . . . . 3 . Crush 3 | . . . . . . . 1 . . . . . . . . . . . . . . . . 1 1 . Escape Stasis 18 | . . . . . . . . . . 6 . . . . . . . . 12 . . . . . . . Rewire 101 | . . . . . . . . . . . . . . . . . . . 101 . . . . . . . Trap 2 | . . . . . . . . . . . . . . 2 . . . . . . . . . . . . Miscellaneous . | . . . . . . . . . . . . . . . . . . . . . . . . . . . Route ------- -11/Scrapyard -10/Materials (discovered 3 exits: *Mat / [*Min] / [*Sub]) -10/Mines -9/Materials -9/Mines (discovered 2 exits: *Mat / *Exi) -9/Exiles (discovered 2 exits: [*Min x2]) -8/Mines -8/Materials -8/Garrison (discovered 4 exits: *Mat x4) -8/Materials (discovered 3 exits: *Fac x2 / Gar) -8/Garrison (discovered 2 exits: *Fac x2) -7/Factory -7/Garrison (discovered 2 exits: *Fac x2) -7/Factory (discovered 5 exits: *Fac x3 / *Low x2) -7/Lower Caves -7/Lower Caves (discovered 2 exits: *Fac / *Zio) -7/Zion (discovered 2 exits: Dee / [*Pro]) -6/Proximity Caves -6/Factory (discovered 6 exits: *Fac x2 / Low x2 / *Ext x2) -6/Extension (discovered 2 exits: *Fac / *Cet) -6/Cetus (discovered 2 exits: *Fac / *Arc) -6/Archives (discovered 3 exits: *Fac / *Hub x2) -6/Hub_04(d) (discovered 2 exits: *Fac / Gar) -6/Garrison -5/Factory -4/Factory (discovered 4 exits: [*Res] / *Upp x2 / Arm) -4/Upper Caves History --------- Turn | Location | Event 10 | -11/Scrapyard | Discovered new exit (range 15) 141 | -11/Scrapyard | Entered Materials 142 | -10/Materials | Met a group of wandering Federalists 304 | -10/Materials | Build established: Mutant 569 | -10/Materials | Discovered new exit (range 7) 822 | -10/Materials | Discovered new exit (range 16) 839 | -10/Materials | Discovered new exit (range 8) 870 | -10/Materials | Entered Mines 941 | -10/Mines | Received a Rocket Launcher from a helpful Derelict 1102 | -10/Mines | Found a damaged Exp. Sensor Array with a note attached 1158 | -10/Mines | Learned location of Storage (-8) 1265 | -10/Mines | Learned Materials terminal intel 1457 | -10/Mines | Found a Scrap Suit stashed away for nefarious purposes 1461 | -10/Mines | Found Scrap Suit 1515 | -10/Mines | Discovered new exit (range 9) 1528 | -10/Mines | Entered Materials 1528 | -9/Materials | Evolved 2 slots: Utility x1, Weapon x1 1529 | -9/Materials | Loaded intel: 12 terminal locations 1787 | -9/Materials | Discovered new exit (range 12) 1958 | -9/Materials | Entered Mines 1965 | -9/Mines | Joined a pair of Derelicts in attacking an 0b10 outpost 1966 | -9/Mines | Learned Materials stockpile data 1977 | -9/Mines | Met a Derelict bent on vengeance 2032 | -9/Mines | Build established: Gunner 2149 | -9/Mines | Found the Drone Emporium 2297 | -9/Mines | Discovered new exit (range 7) 2319 | -9/Mines | Deemed a non-threat by the Exiles lab entrance 2319 | -9/Mines | Discovered new exit (range 5) 2325 | -9/Mines | Entered Exiles 2346 | -9/Exiles | Discovered new exit (range 15) 2369 | -9/Exiles | Met 8R-AWN 2391 | -9/Exiles | Met EX-HEX 2437 | -9/Exiles | Met EX-BIN 2455 | -9/Exiles | Aligned with FarCom system 2457 | -9/Exiles | Given EX-Vault access code 2498 | -9/Exiles | Opened EX-Vault 2515 | -9/Exiles | Found Gui. Plasma Cannon 2545 | -9/Exiles | Warned to stay clear of 0b10 Research branches 2591 | -9/Exiles | Met EX-DEC 2660 | -9/Exiles | Discovered new exit (range 11) 2674 | -9/Exiles | Left Exiles lab with Gui. Plasma Cannon 2674 | -9/Exiles | Entered Mines 2748 | -8/Mines | Discovered new exit (range 8) 2758 | -8/Mines | Entered Materials 2758 | -8/Materials | Evolved 2 slots: Propulsion x1, Utility x1 3114 | -8/Materials | Destroyed 10 combat bots 3835 | -8/Materials | Build established: Skirmisher 3928 | -8/Materials | Repaired Cooling System 4133 | -8/Materials | Crushed by falling debris 4242 | -8/Materials | Identified exit to Garrison 4245 | -8/Materials | Entered Garrison 4285 | -8/Garrison | Triggered checkpoint 4298 | -8/Garrison | Garrison Relay disabled 4349 | -8/Garrison | Triggered checkpoint 4444 | -8/Garrison | Discovered new exit (range 11) 4470 | -8/Garrison | Triggered checkpoint 4543 | -8/Garrison | Garrison Relay disabled 4553 | -8/Garrison | Discovered new exit (range 32) 4553 | -8/Garrison | Discovered new exit (range 73) 4553 | -8/Garrison | Discovered new exit (range 25) 4553 | -8/Garrison | Discovered new exit (range 39) 4695 | -8/Garrison | Triggered checkpoint 4731 | -8/Garrison | Triggered checkpoint 4802 | -8/Garrison | Destroyed 7 combat bots 4817 | -8/Garrison | Garrison Relay disabled 4825 | -8/Garrison | Garrison Relay disabled 4827 | -8/Garrison | Garrison Relay disabled 4828 | -8/Garrison | Garrison Relay disabled 5374 | -8/Garrison | Build established: Mutant 5462 | -8/Garrison | Entered Materials 5931 | -8/Materials | Discovered new exit (range 4) 5937 | -8/Materials | Core integrity fell below 50% 5967 | -8/Materials | Found Prototype Device 5984 | -8/Materials | Lost 4 parts (1n2u1w) 6366 | -8/Materials | Discovered new exit (range 16) 6390 | -8/Materials | Garrison activated, responded to threat 6407 | -8/Materials | Identified exit to Garrison 6407 | -8/Materials | Entered Garrison 6619 | -8/Garrison | Destroyed 8 combat bots 6660 | -8/Garrison | Build established: Skirmisher 6822 | -8/Garrison | Core integrity fell below 20% 6907 | -8/Garrison | Triggered checkpoint 6908 | -8/Garrison | Garrison Relay disabled 6950 | -8/Garrison | Triggered checkpoint 7007 | -8/Garrison | Discovered new exit (range 15) 7113 | -8/Garrison | Triggered checkpoint 7309 | -8/Garrison | Spotted B-75 Beast 7392 | -8/Garrison | Garrison Relay disabled 7595 | -8/Garrison | Discovered new exit (range 11) 7709 | -8/Garrison | Entered Factory 7709 | -7/Factory | Evolved 2 slots: Utility x2 7960 | -7/Factory | Build established: Scavenger-Tank 8909 | -7/Factory | First assault squad dispatched 8984 | -7/Factory | Identified exit to Garrison 9382 | -7/Factory | Entered Garrison 9551 | -7/Garrison | Triggered checkpoint 9617 | -7/Garrison | Crushed by falling debris 9617 | -7/Garrison | System corruption reached 10% 9657 | -7/Garrison | Lost 6 parts (1p1n3u1w) 9703 | -7/Garrison | Garrison Relay disabled 9742 | -7/Garrison | Garrison Relay disabled 9873 | -7/Garrison | Triggered checkpoint 9928 | -7/Garrison | Triggered checkpoint 10032 | -7/Garrison | Triggered checkpoint 10113 | -7/Garrison | Garrison Relay disabled 10152 | -7/Garrison | Discovered new exit (range 10) 10335 | -7/Garrison | Discovered new exit (range 10) 10385 | -7/Garrison | Rescued a captive Derelict 10386 | -7/Garrison | Rescued a captive Derelict 10419 | -7/Garrison | Lost 4 parts (1p2n1w) 10433 | -7/Garrison | Build established: Scavenger-Mutant 10476 | -7/Garrison | Triggered checkpoint 10595 | -7/Garrison | Garrison Relay disabled 10653 | -7/Garrison | Entered Factory 10653 | -7/Factory | Accompanied by 1 ally 11810 | -7/Factory | Central database locked down 12107 | -7/Factory | Discovered new exit (range 10) 12236 | -7/Factory | Discovered new exit (range 8) 12281 | -7/Factory | Build established: Scavenger-Gunner 12631 | -7/Factory | Discovered new exit (range 13) 12759 | -7/Factory | Repaired Hardlight Generator 13285 | -7/Factory | Repaired Imp. Heat Sink 13321 | -7/Factory | Identified exit to Lower Caves 13626 | -7/Factory | Build established: Mutant 13972 | -7/Factory | Fabricated Gauss Rifle (x2) 14003 | -7/Factory | Build established: Gunner 14409 | -7/Factory | Entered Lower Caves 14415 | -7/Lower Caves | Met a Warlord Commander 14416 | -7/Lower Caves | Learned location of Warlord (-4) 14417 | -7/Lower Caves | Warlord Commander delivered Encrypted Comm Array 14423 | -7/Lower Caves | Found Encrypted Comm Array 14437 | -7/Lower Caves | Learned 4 Factory zone layouts 14977 | -7/Lower Caves | Learned Factory terminal intel 15142 | -7/Lower Caves | Discovered new exit (range 6) 15269 | -7/Lower Caves | Entered another Lower Caves area 15330 | -7/Lower Caves | Discovered new exit (range 13) 15392 | -7/Lower Caves | Encountered a Warlord checkpoint 15493 | -7/Lower Caves | Identified exit to Zion 16216 | -7/Lower Caves | Attacked by a delusional Derelict stockpiling parts 16443 | -7/Lower Caves | Entered Zion 16474 | -7/Zion | Identified exit to Deep Caves 16502 | -7/Zion | Discovered new exit (range 15) 16751 | -7/Zion | Found Prototype Processor 16757 | -7/Zion | Found Prototype Processor 16758 | -7/Zion | Identified Exp. Signal Interpreter 16760 | -7/Zion | Identified Exp. Target Analyzer 16769 | -7/Zion | Found Prototype Processor 16770 | -7/Zion | Identified Exp. Core Analyzer 16831 | -7/Zion | Build established: Mutant 16920 | -7/Zion | Found Unknown Piercing Weapon 16923 | -7/Zion | Identified CR-A16's Pointy Stick 17052 | -7/Zion | System corruption cleaned by Quarantine Array 17883 | -7/Zion | Learned Factory emergency access door positions 17942 | -7/Zion | Received a visual enhancement algorithm 17979 | -7/Zion | Ran a visual enhancement algorithm 18076 | -7/Zion | Ran a visual enhancement algorithm 18615 | -7/Zion | Found Prototype Device 18616 | -7/Zion | Identified Bomb Factory No. 2 19074 | -7/Zion | Given A8's code to call for help 19504 | -7/Zion | Rebuked by Imprinter 20085 | -7/Zion | Entered Proximity Caves 20136 | -6/Proximity Caves | Attracted the attention of an 0b10 checkpoint 20276 | -6/Proximity Caves | Build established: Gunner 20557 | -6/Proximity Caves | Discovered new exit (range 6) 20591 | -6/Proximity Caves | Entered Factory 20591 | -6/Factory | Evolved 2 slots: Utility x2 20594 | -6/Factory | Loaded intel: 27 terminal locations 20600 | -6/Factory | Identified exit to DSF 20610 | -6/Factory | Identified exit to Lower Caves 20610 | -6/Factory | Identified exit to Extension 20895 | -6/Factory | Build established: Tank 20916 | -6/Factory | Discovered new exit (range 6) 21299 | -6/Factory | Lost 6 parts (2n3u1w) 21456 | -6/Factory | Discovered new exit (range 8) 21481 | -6/Factory | Joined by Warlord Geek squad 21523 | -6/Factory | Build established: Mutant 22016 | -6/Factory | Entered Extension 22455 | -6/Extension | Build established: Scavenger-Gunner 22751 | -6/Extension | Rescued a captive Derelict 23773 | -6/Extension | Rescued a captive Derelict 23773 | -6/Extension | Rescued a captive Derelict 23905 | -6/Extension | Build established: Commander-Gunner 24018 | -6/Extension | Spotted B-75 Beast 24024 | -6/Extension | Allies destroyed B-75 Beast 24034 | -6/Extension | Spotted B-75 Beast 24053 | -6/Extension | Allies destroyed B-75 Beast 24076 | -6/Extension | Lost 3 allies 24216 | -6/Extension | Disrupted transfer network 24432 | -6/Extension | Discovered new exit (range 16) 24434 | -6/Extension | Discovered new exit (range 15) 24577 | -6/Extension | Rescued a captive Derelict 24600 | -6/Extension | Watched by a mysterious "MATRIX" hacker. 24616 | -6/Extension | Repaired Imp. Treads+ 24793 | -6/Extension | Rescued a captive Derelict 24816 | -6/Extension | First assault squad dispatched 25070 | -6/Extension | Rescued a captive Derelict 25070 | -6/Extension | Rescued a captive Derelict 25247 | -6/Extension | Rescued a captive Derelict 25295 | -6/Extension | Lost 5 allies 25295 | -6/Extension | Rescued a captive Derelict 25579 | -6/Extension | Build established: Gunner 25840 | -6/Extension | Entered Cetus 25840 | -6/Cetus | Accompanied by 1 ally 25867 | -6/Cetus | Spotted Cetus Guard 25867 | -6/Cetus | Spotted Cetus Guard 25871 | -6/Cetus | Allies destroyed Cetus Guard 25872 | -6/Cetus | Spotted Cetus Guard 25873 | -6/Cetus | Allies destroyed Cetus Guard 25874 | -6/Cetus | Destroyed Cetus Guard 26032 | -6/Cetus | Core integrity fell below 50% 26212 | -6/Cetus | Build established: Scavenger-Tank 26305 | -6/Cetus | Discovered new exit (range 15) 26342 | -6/Cetus | Spotted Cetus Guard 26342 | -6/Cetus | Spotted Cetus Guard 26347 | -6/Cetus | Spotted Cetus Guard 26347 | -6/Cetus | Spotted Cetus Guard 26352 | -6/Cetus | Destroyed Cetus Guard 26369 | -6/Cetus | Destroyed Cetus Guard 26374 | -6/Cetus | Destroyed Cetus Guard 26387 | -6/Cetus | Allies destroyed Cetus Guard 26397 | -6/Cetus | Discovered new exit (range 15) 26405 | -6/Cetus | Met Revision 17 26518 | -6/Cetus | Entered Archives 26518 | -6/Archives | Accompanied by 1 ally 26618 | -6/Archives | Unable to access archive contents 26624 | -6/Archives | Discovered new exit (range 15) 26644 | -6/Archives | Unable to access archive contents 26646 | -6/Archives | Discovered new exit (range 16) 26665 | -6/Archives | Unable to access archive contents 26671 | -6/Archives | Discovered new exit (range 16) 26695 | -6/Archives | Unable to access archive contents 27082 | -6/Archives | Entered Hub_04(d) 27233 | -6/Hub_04(d) | Identified exit to Garrison 27248 | -6/Hub_04(d) | Discovered new exit (range 6) 27254 | -6/Hub_04(d) | Entered Garrison 27278 | -6/Garrison | Triggered checkpoint 27336 | -6/Garrison | Garrison Relay disabled 27440 | -6/Garrison | Triggered checkpoint 27501 | -6/Garrison | Core integrity fell below 20% 27700 | -6/Garrison | Discovered new exit (range 12) 27764 | -6/Garrison | Triggered checkpoint 27826 | -6/Garrison | Entered Factory 27826 | -5/Factory | Evolved 2 slots: Weapon x2 27957 | -5/Factory | Repaired Bore Cannon 28413 | -5/Factory | Found Prototype Launcher 28413 | -5/Factory | Identified Tesla Bomb Launcher 28576 | -5/Factory | Cargo convoy interrupted 28611 | -5/Factory | Fabricated Tiamat Missile Launcher (x1) 28709 | -5/Factory | Fabricated Imp. Medium Treads (x2) 28830 | -5/Factory | Discovered new exit (range 14) 28900 | -5/Factory | Lost 4 parts (1p2u1w) 28978 | -5/Factory | Destroyed 8 combat bots 28984 | -5/Factory | Entered another Factory area 28984 | -4/Factory | Evolved 2 slots: Power x1, Propulsion x1 28988 | -4/Factory | Lost 3 parts (2p1w) 29392 | -4/Factory | Identified exit to Upper Caves 29392 | -4/Factory | Identified exit to Armory 29461 | -4/Factory | Fabricated Kinecellerator? 29489 | -4/Factory | Lost 3 parts (1n1u1w) 29546 | -4/Factory | Fabricated Kinecellerator? 29666 | -4/Factory | Destroyed 10 combat bots 29672 | -4/Factory | Lost 3 parts (3w) 29957 | -4/Factory | Core integrity fell below 50% 29975 | -4/Factory | Discovered new exit (range 9) 29985 | -4/Factory | Lost 14 parts (2p2n5u5w) 30014 | -4/Factory | Entered Upper Caves 30053 | -4/Upper Caves | Core integrity fell below 20% 30057 | -4/Upper Caves | Destroyed by H-77 Assassin with Coil Gun Last Messages --------------- 30040_ Searching scrap... 30040_ Found Drone Bay. 30040_ Found Thermal Shield. 30040_ Found 60 Matter. 30041_ Acquired Drone Bay. 30041_ S-27 Virus springs to life. 30042_ Acquired 10 matter. 30045_ Slug penetrates Wall. 30047_ Acquired derelict log, extracted data. Data stored: Armory entrances (x1). 30048_ Lrn. Sensor Array destroyed. 30048_ Slug penetrates Wall. 30052_ Penetrated by Slug. 30052_ S-27 Virus destroyed. 30054_ Wall collapses. 30054_ Penetrated by Slug. 30054_ Slug penetrates Wall. 30055_ Penetrated by Slug. 30055_ Slug penetrates Wall. [Achievement: 30k Club] Map ----- +----------------------------------------------------+ | ?????????????????????????????????????????????????? | | ?????????????????????????????????????????????????? | | ?????????????????????????????????????????????????? | | ?????????????????????????????????????????????????? | | ?????????????????????????????????????????????????? | | ?????????????????????????????????????????????????? | | ????????????????????????##########???????????????? | | ???????????????????????## ##??????????????? | | ???????????????????????# # ##?????????????? | | ???????????????????????## # # ########??????? | | ???????????????????????# ### ## #######? | | ???????????????????????# ????# ### ## | | ?????????????????????????????# #?##### # | | ?????????????????????????????# #?????# ## | | ????????????????????????????? #?#### ### | | ?????????????????????????????### | | ???????????????????????????????# | | ???????????????????????????????# ################ | | ???????????????????##????????? #??????????????# | | ???????????????????? ???????? # #??????????????# | | ????????????????????? ???????#?? #??????????????# | | ?????????????????????# ???????## #???????"" ???# | | ?????????????????????# ??????# #???????"" ???# | | ????????????????????## #????## #??????? ????# | | ????????????????????# ##### +??????? ????+ | | ????????????????????# @ + ????? ???? + | | ????????????????????# hh # ???? $??? # | | ????????????????????# ####;s # ####//#### # | | ????????????????? ??## # # | | ?????????????? ???# #? $# | | ?????????????? ????# #?? " " "?# | | ?????????????## ?????# #???"" """??# | | ??????????????# #?????#=%## ######////###### | | ??????????????# #??????#%*#?# ! | | ??????????????## #?????###*[### % | | ???????????????###?????## ### ###### | | ??????????????????????## #????### # | | ??????????????????????# #??????## ## | | ??????????????????????## ######???????######? | | ???????????????????????#### ##??????????????????? | | ??????????????????????????####???????????????????? | | ?????????????????????????????????????????????????? | | ?????????????????????????????????????????????????? | | ?????????????????????????????????????????????????? | | ?????????????????????????????????????????????????? | | ?????????????????????????????????????????????????? | | ?????????????????????????????????????????????????? | | ?????????????????????????????????????????????????? | | ?????????????????????????????????????????????????? | | ?????????????????????????????????????????????????? | +----------------------------------------------------+ Best States ------------- Heat Dissipation 62 Energy Generation 34 Energy Capacity 385 Matter Stores 300 Matter Capacity 300 Sight Range 16 Robot Scan Range 18 Terrain Scan Range 20 Terrain Scan Density 10 Jamming Range 12 Additional Mass Support 9 Armor Coverage 825 Resistance: KI 30 Resistance: TH 10 Core Shielding 20 Weapon Cycling 15 Evasion (%) 50 Targeting Accuracy 8 Melee Accuracy 6 Core Analysis 6 Armor Integrity Analysis 30 Recoil Reduction 4 Kinecelleration 30 Salvage Targeting 2 Offensive Hacking 24 Defensive Hacking 12 Authchip Count 1 Item Schematics ----------------- Gauss Rifle | -7/Factory | Scanalyzed Hrd. Medium Armor Plating | -7/Factory | Scanalyzed Kinecellerator | -7/Factory | Scanalyzed Weapon Cycler | -7/Factory | Scanalyzed Imp. Medium Treads | -7/Zion | Archive Remote Datajack | -7/Zion | Archive EM Shield | -7/Zion | Archive Recalibrator | -7/Zion | Archive Imp. Kinecellerator | -7/Zion | Archive Thermic Laser | -7/Zion | Archive Gauss Cannon | -7/Zion | Archive Spear | -7/Zion | Archive Phase Cannon | -7/Zion | Archive Angular Momentum Engine | -7/Zion | Archive Coolant Injector | -7/Zion | Archive Disruptor Cannon | -7/Zion | Archive Thermal Shield | -7/Zion | Archive Proton Missile Launcher | -7/Zion | Archive Tiamat Missile Launcher | -7/Zion | Archive Robot Schematics ------------------ S-27 Virus | -7/Zion | Archive O-24 Administrator | -7/Zion | Archive R-06 Scavenger | -7/Zion | Archive Fabricated ------------ Gauss Rifle | x2 | -7/Factory Tiamat Missile Launcher | x1 | -5/Factory | Authchip Imp. Medium Treads | x2 | -5/Factory Kinecellerator | x2 | -4/Factory Kinecellerator | x2 | -4/Factory Repaired ---------- Cooling System | 6% | -8/Materials Hardlight Generator | 10% | -7/Factory Imp. Heat Sink | 27% | -7/Factory Imp. Treads | 28% | -6/Extension Bore Cannon | 13% | -5/Factory Studied --------- Hvy. Assault Rifle | -9/Materials | Hacked Imp. Treads | -9/Materials | Hacked Rocket Launcher | -9/Materials | Hacked Gauss Rifle | -7/Factory | Hacked Adv. Assault Cannon | -7/Factory | Hacked Med. Treads | -7/Factory | Hacked Alien Tech Used ----------------- None Achievements -------------- 30k Club Brute Force Ew, Corruption Fancy Inventory Immobile And Lovin' It Infiltrator Let Me Out Of Here My Bad Official Business Prolific Hacker Thread The Needle Around The Corner Well Done Challenges ------------ None Game ------ Seed AngularCoreNanoactuators Manual? 0 Play Time 04:37:44 Cumulative 61.6 hours Start 2026.01.31 @ 21:16:59 End 2026.02.04 @ 21:28:31 Sessions 34 Manual Loads 0 Difficulty Rogue Special Mode None Game No. 107 Rogue 32 Adventurer 75 Explorer 0 Win Type - Total 1 Types 1/0/0/0/0/0/0/0/0/0 Lore% 33 Gallery% 41 Achievement% 27 Wizard Run 0 Options --------- Layout 2 ASCII 0 Keyboard 0 Movement Numpad Keybinds 0 Fullscreen 2 Font 24/Smallcaps Map View 50x44 Zoom Use 0% Tactical HUD 1 Map Filters NONE Filters NONE Steam 1 RUN: b25725e6-5ea7-46fa-aad9-a9fdbcde3895